bitfinex-derivatives/quotes_BNBF0:USTF0_20250630
["timestamp","ask_amount","ask_price","bid_price","bid_amount"]
[1751278791513,2.10417045,651.73,651.55,1.208]
[1751278791813,2.10417045,651.72,651.55,1.208]
[1751278792017,1.00580619,651.71,651.55,1.208]
[1751278792216,1.00580619,651.7,651.55,1.208]
[1751278792417,1.00580619,651.69,651.55,1.208]
[1751278792613,1.00580619,651.68,651.55,1.208]
[1751278792916,1.00580619,651.67,651.55,1.208]
[1751278793118,1.00580619,651.66,651.55,1.208]
[1751278793418,1.00580619,651.65,651.55,1.208]
[1751278793617,1.00580619,651.64,651.55,1.208]
[1751278793918,1.00580619,651.63,651.55,1.208]
[1751278794213,1.00580619,651.62,651.55,1.208]
[1751278794413,1.00580619,651.61,651.55,1.208]
[1751278794716,1.00580619,651.6,651.55,1.208]
[1751278794917,1.00580619,651.59,651.55,1.208]
[1751278795216,1.00580619,651.58,651.55,1.208]
[1751278795411,1.34699652,651.84,651.55,1.208]
[1751278795614,3.45532049,651.83,651.55,1.208]
[1751278795816,3.45532049,651.82,651.55,1.208]
[1751278796014,3.45532049,651.81,651.55,1.208]
[1751278796213,2.10832397,651.8,651.55,1.208]
[1751278796415,2.10832397,651.79,651.55,1.208]
[1751278796612,2.10832397,651.78,651.55,1.208]
[1751278796814,2.10832397,651.77,651.55,1.208]
[1751278797015,2.10832397,651.76,651.55,1.208]
[1751278797216,2.10832397,651.75,651.55,1.208]
[1751278797414,2.10832397,651.74,651.55,1.208]
[1751278797718,1.1386314,651.87,651.55,1.208]
[1751278797719,2.10832397,651.73,651.56,1.133]
[1751278797916,2.10832397,651.72,651.56,1.133]
[1751278798220,2.10832397,651.71,651.56,1.133]
[1751278798413,1.1386314,651.87,651.56,1.133]
[1751278798414,2.10832397,651.7,651.56,1.133]
[1751278798616,2.10832397,651.69,651.56,1.133]
[1751278798815,2.10832397,651.68,651.56,1.133]
[1751278799018,2.10832397,651.67,651.56,1.133]
[1751278799219,2.10832397,651.66,651.56,1.133]
[1751278799420,2.10832397,651.65,651.56,1.133]
[1751278799621,1.00651427,651.64,651.56,1.133]
[1751278799818,1.00651427,651.63,651.56,1.133]
[1751278800021,1.00651427,651.62,651.56,1.133]
[1751278800323,1.00651427,651.61,651.56,1.133]
[1751278800521,1.00651427,651.6,651.56,1.133]
[1751278800819,1.00651427,651.59,651.56,1.133]
[1751278801024,1.00651427,651.58,651.56,1.133]
[1751278801225,1.00651427,651.57,651.56,1.133]
[1751278808929,1.00651427,651.57,651.56,1.133]
[1751278814631,1.00651427,651.57,651.55,1.208]
[1751278814835,1.00651427,651.56,651.55,1.208]
[1751278830751,1.00651427,651.56,651.52,1.558]
[1751278831047,1.00651427,651.55,651.52,1.558]
[1751278831247,1.00651427,651.54,651.52,1.558]
[1751278831550,1.00651427,651.53,651.52,1.558]
[1751278835456,1.1386314,651.81,651.52,1.558]
[1751278835749,3.454808,651.8,651.52,1.558]
[1751278835950,3.454808,651.79,651.52,1.558]
[1751278836149,3.454808,651.78,651.52,1.558]
[1751278836350,2.1087886,651.77,651.52,1.558]
[1751278836550,2.1087886,651.76,651.52,1.558]
[1751278836754,2.1087886,651.75,651.52,1.558]
[1751278836950,2.1087886,651.74,651.52,1.558]
[1751278837151,2.1087886,651.73,651.52,1.558]
[1751278837351,2.1087886,651.72,651.52,1.558]
[1751278837551,2.1087886,651.71,651.52,1.558]
[1751278837754,2.1087886,651.7,651.52,1.558]
[1751278838054,2.1087886,651.69,651.52,1.558]
[1751278838255,2.1087886,651.68,651.52,1.558]
[1751278838453,2.1087886,651.67,651.52,1.558]
[1751278838651,2.1087886,651.66,651.52,1.558]
[1751278838851,2.1087886,651.65,651.52,1.558]
[1751278839051,2.1087886,651.64,651.52,1.558]
[1751278839250,1.0077112,651.63,651.46,2.952]
[1751278839450,1.0077112,651.62,651.46,2.952]
[1751278839650,1.0077112,651.61,651.46,2.952]
[1751278839858,1.0077112,651.6,651.46,2.952]
[1751278840052,1.0077112,651.59,651.46,2.952]
[1751278840256,1.0077112,651.58,651.46,2.952]
[1751278840450,1.0077112,651.57,651.46,2.952]
[1751278840655,1.0077112,651.56,651.46,2.952]
[1751278840853,1.0077112,651.55,651.46,2.952]
[1751278841053,1.0077112,651.54,651.46,2.952]
[1751278841356,1.0077112,651.53,651.46,2.952]
[1751278841556,1.3460306,651.82,651.46,2.952]
[1751278841857,3.4547503,651.81,651.46,2.952]
[1751278842056,3.4547503,651.8,651.46,2.952]
[1751278842257,2.1087197,651.79,651.46,2.952]
[1751278842553,2.1087197,651.78,651.46,2.952]
[1751278842754,2.1087197,651.77,651.46,2.952]
[1751278842959,2.1087197,651.76,651.48,1.112]
[1751278843159,2.1087197,651.75,651.48,1.112]
[1751278843359,2.1087197,651.74,651.48,1.112]
[1751278843559,2.1087197,651.73,651.48,1.112]
[1751278843761,2.1087197,651.72,651.48,1.112]
[1751278843960,2.1087197,651.71,651.48,1.112]
[1751278844160,2.1087197,651.7,651.48,1.112]
[1751278844357,2.1087197,651.69,651.48,1.112]
[1751278844556,2.1087197,651.68,651.48,1.112]
[1751278844762,2.1087197,651.67,651.49,1.842]
[1751278845060,2.1087197,651.66,651.49,1.842]
[1751278845260,2.1087197,651.65,651.49,1.842]
[1751278845461,2.1087197,651.64,651.49,1.842]
[1751278845756,1.0076332,651.63,651.49,1.842]
[1751278845960,1.0076332,651.62,651.49,1.842]
[1751278846259,1.1386314,651.78,651.49,1.842]
[1751278846260,1.0076332,651.61,651.49,1.842]
[1751278846457,1.0076332,651.6,651.49,1.842]
[1751278846756,1.0076332,651.59,651.49,1.842]
[1751278846961,1.0076332,651.58,651.49,1.842]
[1751278847161,1.0076332,651.57,651.49,1.842]
[1751278847361,1.1386314,651.78,651.49,1.842]
[1751278847362,1.0076332,651.56,651.49,1.842]
[1751278847662,1.0076332,651.55,651.49,1.842]
[1751278847856,1.0076332,651.54,651.49,1.842]
[1751278848061,1.0076332,651.53,651.49,1.842]
[1751278848259,1.1386314,651.78,651.49,1.842]
[1751278848260,1.0076332,651.52,651.49,1.842]
[1751278848461,1.0076332,651.51,651.49,1.842]
[1751278848762,1.0076332,651.5,651.49,1.842]
[1751278863680,1.0076332,651.5,651.43,1.481]
[1751278863878,1.1386314,651.82,651.43,1.481]
[1751278864075,2.1088984,651.81,651.43,1.481]
[1751278864374,2.1088984,651.8,651.43,1.481]
[1751278864575,2.1088984,651.79,651.43,1.481]
[1751278864880,2.1088984,651.78,651.43,1.481]
[1751278865179,2.1088984,651.77,651.43,1.481]
[1751278865379,2.1088984,651.76,651.48,1.056]
[1751278865580,2.1088984,651.75,651.48,1.056]
[1751278865778,2.1088984,651.74,651.48,1.056]
[1751278865980,2.1088984,651.73,651.48,1.056]
[1751278866177,1.1386314,651.84,651.48,1.056]
[1751278866178,1.0075417,651.72,651.48,1.056]
[1751278866381,1.0075417,651.71,651.48,1.056]
[1751278866581,1.0075417,651.7,651.48,1.056]
[1751278866777,1.0075417,651.69,651.48,1.056]
[1751278866982,1.1386314,651.82,651.49,1.422]
[1751278866983,1.0075417,651.68,651.49,1.422]
[1751278867181,1.0075417,651.67,651.49,1.422]
[1751278867382,1.0075417,651.66,651.49,1.422]
[1751278867678,1.0075417,651.65,651.49,1.422]
[1751278867982,1.0075417,651.64,651.49,1.422]
[1751278868180,1.0075417,651.63,651.49,1.422]
[1751278868382,1.0075417,651.62,651.49,1.422]
[1751278868578,1.0075417,651.61,651.49,1.422]
[1751278868782,1.0075417,651.6,651.49,1.422]
[1751278868983,1.0075417,651.59,651.49,1.422]
[1751278869183,1.0075417,651.58,651.49,1.422]
[1751278869381,1.0075417,651.57,651.49,1.422]
[1751278869579,1.0075417,651.56,651.49,1.422]
[1751278869780,1.0075417,651.55,651.49,1.422]
[1751278869985,1.0075417,651.54,651.49,1.422]
[1751278870180,1.1386314,651.8,651.49,1.422]
[1751278870485,2.1083484,651.79,651.49,1.422]
[1751278870680,2.1083484,651.78,651.5,1.05]
[1751278870981,2.1083484,651.77,651.5,1.05]
[1751278871184,2.1083484,651.76,651.5,1.05]
[1751278871484,2.1083484,651.75,651.5,1.05]
[1751278871685,2.1083484,651.74,651.5,1.05]
[1751278871884,2.1083484,651.73,651.5,1.05]
[1751278872081,2.1083484,651.72,651.5,1.05]
[1751278872283,2.1083484,651.71,651.5,1.05]
[1751278872481,2.1083484,651.7,651.5,1.05]
[1751278872685,1.0072712,651.69,651.5,1.05]
[1751278872884,1.0072712,651.68,651.5,1.05]
[1751278873086,1.0072712,651.67,651.5,1.05]
[1751278873382,1.0072712,651.66,651.5,1.05]
[1751278873580,1.0072712,651.65,651.5,1.05]
[1751278873786,1.0072712,651.64,651.5,1.05]
[1751278873986,1.0072712,651.63,651.5,1.05]
[1751278874186,1.0072712,651.62,651.5,1.05]
[1751278874486,1.0072712,651.61,651.5,1.05]
[1751278874681,1.0072712,651.6,651.5,1.05]
[1751278874981,1.0072712,651.59,651.5,1.05]
[1751278875185,1.0072712,651.58,651.5,1.05]
[1751278875381,1.0072712,651.57,651.5,1.05]
[1751278875581,1.0072712,651.56,651.5,1.05]
[1751278875784,1.0072712,651.55,651.5,1.05]
[1751278875981,1.0072712,651.54,651.5,1.05]
[1751278876182,1.0072712,651.53,651.5,1.05]
[1751278876487,1.0072712,651.52,651.5,1.05]
[1751278876686,1.0072712,651.51,651.5,1.05]
[1751278885491,1.1386314,651.88,651.5,1.05]
[1751278885691,3.4539426,651.87,651.5,1.05]
[1751278885891,3.4539426,651.86,651.5,1.05]
[1751278886091,3.4539426,651.85,651.5,1.05]
[1751278886293,3.4539426,651.84,651.5,1.05]
[1751278886591,3.4539426,651.83,651.5,1.05]
[1751278886791,3.4539426,651.82,651.5,1.05]
[1751278887092,2.1079314,651.81,651.5,1.05]
[1751278887396,2.1079314,651.8,651.5,1.05]
[1751278887596,2.1079314,651.79,651.5,1.05]
[1751278887892,2.1079314,651.78,651.5,1.05]
[1751278888098,2.1079314,651.77,651.5,1.05]
[1751278888297,2.1079314,651.76,651.5,1.05]
[1751278888598,2.1079314,651.75,651.5,1.05]
[1751278888892,2.1079314,651.74,651.5,1.05]
[1751278889096,2.1079314,651.73,651.5,1.05]
[1751278889293,2.1079314,651.72,651.5,1.05]
[1751278889493,2.1079314,651.71,651.5,1.05]
[1751278889697,2.1079314,651.7,651.5,1.05]
[1751278889894,2.1079314,651.69,651.51,1.749]
[1751278890097,2.1079314,651.68,651.51,1.749]
[1751278890393,2.1079314,651.67,651.52,1.1]
[1751278890593,2.1079314,651.66,651.52,1.1]
[1751278890797,2.1079314,651.65,651.52,1.1]
[1751278891098,1.0069966,651.64,651.52,1.1]
[1751278891397,1.0069966,651.63,651.52,1.1]
[1751278891594,1.0069966,651.62,651.52,1.1]
[1751278891798,1.0069966,651.61,651.52,1.1]
[1751278891999,1.0069966,651.6,651.52,1.1]
[1751278892198,1.0069966,651.59,651.52,1.1]
[1751278892394,1.0069966,651.58,651.52,1.1]
[1751278892595,1.0069966,651.57,651.52,1.1]
[1751278892900,1.0068293,651.56,651.52,1.1]
[1751278893198,1.3459205,651.82,651.52,1.1]
[1751278893498,3.4536276,651.81,651.52,1.1]
[1751278893699,2.1077071,651.8,651.53,0.631]
[1751278893895,2.1077071,651.79,651.53,0.631]
[1751278894097,2.1077071,651.78,651.53,0.631]
[1751278894297,2.1077071,651.77,651.53,0.631]
[1751278894496,2.1077071,651.76,651.53,0.631]
[1751278894796,2.1077071,651.75,651.53,0.631]
[1751278894997,2.1077071,651.74,651.53,0.631]
[1751278895197,2.1077071,651.73,651.53,0.631]
[1751278895401,2.1077071,651.72,651.53,0.631]
[1751278895596,2.1077071,651.71,651.53,0.631]
[1751278895796,2.1077071,651.7,651.53,0.631]
[1751278896096,2.1077071,651.69,651.53,0.631]
[1751278896298,2.1077071,651.68,651.53,0.631]
[1751278896597,2.1077071,651.67,651.53,0.631]
[1751278896800,2.1077071,651.66,651.53,0.631]
[1751278897000,2.1077071,651.65,651.53,0.631]
[1751278897200,2.1077071,651.64,651.53,0.631]
[1751278897398,1.0068367,651.63,651.53,0.631]
[1751278897600,1.0068367,651.62,651.53,0.631]
[1751278897798,1.0068367,651.61,651.53,0.631]
[1751278898001,1.0068367,651.6,651.53,0.631]
[1751278898199,1.0068367,651.59,651.53,0.631]
[1751278898403,1.0068367,651.58,651.53,0.631]
[1751278898601,1.0068367,651.57,651.53,0.631]
[1751278898801,1.0068367,651.56,651.53,0.631]
[1751278899001,1.0068367,651.55,651.53,0.631]
[1751278899302,1.0068367,651.54,651.53,0.631]
[1751278909710,1.1386314,651.81,651.53,0.631]
[1751278909907,1.1010502,651.8,651.53,0.631]
[1751278910108,1.1010502,651.79,651.53,0.631]
[1751278910312,1.1010502,651.78,651.53,0.631]
[1751278910614,1.1010502,651.77,651.53,0.631]
[1751278910809,1.1010502,651.76,651.53,0.631]
[1751278911009,1.1386314,651.81,651.53,0.631]
[1751278911010,1.1010502,651.75,651.53,0.631]
[1751278911209,1.1010502,651.74,651.53,0.631]
[1751278911408,1.1010502,651.73,651.53,0.631]
[1751278911609,1.1010502,651.72,651.53,0.631]
[1751278911813,1.1010502,651.71,651.53,0.631]
[1751278912011,1.1010502,651.7,651.53,0.631]
[1751278912217,1.1010502,651.69,651.53,0.631]
[1751278912416,1.1010502,651.68,651.53,0.631]
[1751278912616,1.1010502,651.67,651.53,0.631]
[1751278912816,1.1386314,651.8,651.53,0.631]
[1751278912817,1.1010502,651.66,651.53,0.631]
[1751278913017,1.1010502,651.65,651.53,0.631]
[1751278913318,1.1386314,651.81,651.53,0.631]
[1751278913619,3.585994,651.8,651.53,0.631]
[1751278913814,1.1011943,651.79,651.53,0.631]
[1751278914012,1.1011943,651.78,651.53,0.631]
[1751278914214,1.1011943,651.77,651.53,0.631]
[1751278914412,1.1011943,651.76,651.53,0.631]
[1751278914614,1.1011943,651.75,651.53,0.631]
[1751278914917,1.1011943,651.74,651.53,0.631]
[1751278915115,1.1011943,651.73,651.53,0.631]
[1751278915315,1.1386314,651.86,651.53,0.631]
[1751278915316,1.1011943,651.72,651.53,0.631]
[1751278915519,1.1386314,651.86,651.53,0.631]
[1751278915815,1.1386314,651.88,651.53,0.631]
[1751278916117,1.1016921,651.87,651.53,0.631]
[1751278916316,1.1386314,651.88,651.53,0.631]
[1751278916820,1.1386314,651.87,651.53,0.631]
[1751278917721,1.1386314,651.87,651.45,2.772]
[1751278919220,1.1386314,651.87,651.48,1.419]
[1751278919425,1.1386314,652.06,651.48,1.419]
[1751278919724,1.0961958,652.05,651.49,1.307]
[1751278919924,1.0961958,652.04,651.49,1.307]
[1751278920122,1.0961958,652.03,651.49,1.307]
[1751278920324,1.0961958,652.02,651.49,1.307]
[1751278920525,1.0961958,652.01,651.49,1.307]
[1751278920724,1.1386314,652.06,651.49,1.307]
[1751278920725,1.0961958,652.0,651.49,1.307]
[1751278920922,1.0961958,651.99,651.49,1.307]
[1751278921122,1.0961958,651.98,651.49,1.307]
[1751278921421,1.0961958,651.97,651.5,0.631]
[1751278921620,1.0961958,651.96,651.5,0.631]
[1751278921825,1.0961958,651.95,651.5,0.631]
[1751278922120,1.0961958,651.94,651.5,0.631]
[1751278922324,1.1386314,652.11,651.5,0.631]
[1751278922620,2.4388326,652.1,651.5,0.631]
[1751278922824,1.0956938,652.09,651.5,0.631]
[1751278923021,1.0956938,652.08,651.5,0.631]
[1751278923223,3.8123757,653.22,651.5,0.631]
[1751278923224,1.0956938,652.07,651.5,0.631]
[1751278923422,1.0956938,652.06,651.5,0.631]
[1751278923725,1.0956938,652.05,651.5,0.631]
[1751278923922,1.0956938,652.04,651.51,1.5]
[1751278924223,1.0956938,652.03,651.51,1.5]
[1751278924529,1.0956938,652.02,651.51,1.5]
[1751278924725,1.0956938,652.01,651.51,1.5]
[1751278924923,1.0956938,652.0,651.51,1.5]
[1751278925123,1.0956938,651.99,651.51,1.5]
[1751278925323,1.0956938,651.98,651.51,1.5]
[1751278925624,1.0956938,651.97,651.51,1.5]
[1751278925828,1.0956938,651.96,651.51,1.5]
[1751278926024,1.0956938,651.95,651.51,1.5]
[1751278926226,1.1386314,652.16,651.51,1.5]
[1751278926429,2.4379215,652.15,651.51,1.5]
[1751278926630,2.4379215,652.14,651.51,1.5]
[1751278926929,2.4379215,652.13,651.52,1.053]
[1751278927127,2.4379215,652.12,651.52,1.053]
[1751278927325,2.4379215,652.11,651.52,1.053]
[1751278927527,1.0952554,652.1,651.52,1.053]
[1751278927729,1.0952554,652.09,651.52,1.053]
[1751278928028,1.0952554,652.08,651.52,1.053]
[1751278928228,1.0952554,652.07,651.52,1.053]
[1751278928427,1.0952554,652.06,651.52,1.053]
[1751278928630,1.0952554,652.05,651.52,1.053]
[1751278928831,1.0952554,652.04,651.52,1.053]
[1751278929027,1.0952554,652.03,651.52,1.053]
[1751278929326,1.0952554,652.02,651.52,1.053]
[1751278929528,1.0952554,652.01,651.52,1.053]
[1751278929732,1.0952554,652.0,651.52,1.053]
[1751278929931,1.0952554,651.99,651.53,1.535]
[1751278930131,1.0952554,651.98,651.53,1.535]
[1751278930325,1.0952554,651.97,651.53,1.535]
[1751278930531,1.0952554,651.96,651.53,1.535]
[1751278930732,1.0952554,651.95,651.53,1.535]
[1751278931033,1.3421506,652.11,651.53,1.535]
[1751278931329,2.4368818,652.1,651.53,1.535]
[1751278931533,1.0947312,652.09,651.53,1.535]
[1751278931733,1.0947312,652.08,651.53,1.535]
[1751278931929,1.0947312,652.07,651.53,1.535]
[1751278932134,1.0947312,652.06,651.53,1.535]
[1751278932335,1.0947312,652.05,651.53,1.535]
[1751278932535,1.0947312,652.04,651.53,1.535]
[1751278932736,1.0947312,652.03,651.53,1.535]
[1751278932936,1.0947312,652.02,651.53,1.535]
[1751278933234,1.0947312,652.01,651.53,1.535]
[1751278933432,1.0947312,652.0,651.54,1.638]
[1751278933634,1.0947312,651.99,651.54,1.638]
[1751278933833,1.0947312,651.98,651.54,1.638]
[1751278934031,1.0947312,651.97,651.54,1.638]
[1751278934236,1.0947312,651.96,651.54,1.638]
[1751278934436,1.0947312,651.95,651.54,1.638]
[1751278934635,1.3416826,652.12,651.54,1.638]
[1751278934834,2.4360641,652.11,651.54,1.638]
[1751278935034,2.4360641,652.1,651.55,1.321]
[1751278935235,1.0943815,652.09,651.55,1.321]
[1751278935431,1.0943815,652.08,651.55,1.321]
[1751278935735,1.0943815,652.07,651.55,1.321]
[1751278935935,1.0943815,652.06,651.55,1.321]
[1751278936132,1.0943815,652.05,651.55,1.321]
[1751278936436,1.0943815,652.04,651.55,1.321]
[1751278936732,1.0943815,652.03,651.55,1.321]
[1751278936936,1.0943815,652.02,651.56,1.069]
[1751278937135,1.0943815,652.01,651.56,1.069]
[1751278937337,1.0943815,652.0,651.56,1.069]
[1751278937532,1.0943815,651.99,651.56,1.069]
[1751278937733,1.0943815,651.98,651.56,1.069]
[1751278938032,1.3413799,652.13,651.56,1.069]
[1751278938033,1.0943815,651.97,651.56,1.069]
[1751278938338,1.0943815,651.96,651.57,0.631]
[1751278938540,1.0943815,651.95,651.57,0.631]
[1751278938840,1.1386314,652.14,651.57,0.631]
[1751278939035,2.4354898,652.13,651.57,0.631]
[1751278939334,2.4354898,652.12,651.57,0.631]
[1751278939533,2.4354898,652.11,651.57,0.631]
[1751278939737,1.094164,652.1,651.57,0.631]
[1751278939938,1.094164,652.09,651.57,0.631]
[1751278940137,1.094164,652.08,651.57,0.631]
[1751278940437,1.094164,652.07,651.57,0.631]
[1751278940639,1.094164,652.06,651.57,0.631]
[1751278940838,1.094164,652.05,651.57,0.631]
[1751278941036,1.094164,652.04,651.57,0.631]
[1751278941238,1.094164,652.03,651.57,0.631]
[1751278941435,1.094164,652.02,651.57,0.631]
[1751278941737,1.094164,652.01,651.57,0.631]
[1751278941938,3.8123757,653.05,651.57,0.631]
[1751278941939,1.094164,652.0,651.57,0.631]
[1751278942139,1.094164,651.99,651.57,0.631]
[1751278942434,1.094164,651.98,651.57,0.631]
[1751278942638,1.094164,651.97,651.57,0.631]
[1751278942839,1.094164,651.96,651.57,0.631]
[1751278943037,1.094164,651.95,651.57,0.631]
[1751278943341,1.3411841,652.13,651.57,0.631]
[1751278943537,2.4352185,652.12,651.57,0.631]
[1751278943738,2.4352185,652.11,651.57,0.631]
[1751278943935,1.0940344,652.1,651.57,0.631]
[1751278944138,1.0940344,652.09,651.57,0.631]
[1751278944337,1.0940344,652.08,651.57,0.631]
[1751278944541,1.0940344,652.07,651.57,0.631]
[1751278944737,1.0940344,652.06,651.57,0.631]
[1751278944938,1.0940344,652.05,651.58,1.46]
[1751278945241,1.0940344,652.04,651.58,1.46]
[1751278945637,1.1386314,652.17,651.58,1.46]
[1751278945837,1.0939802,652.16,651.58,1.46]
[1751278946041,2.4351336,652.16,651.58,1.46]
[1751278946238,2.4351336,652.15,651.58,1.46]
[1751278946541,2.4351336,652.14,651.59,1.148]
[1751278946744,1.0939802,652.13,651.59,1.148]
[1751278946945,1.0939802,652.12,651.6,1.215]
[1751278947145,1.0939802,652.11,651.6,1.215]
[1751278947346,1.0939802,652.1,651.6,1.215]
[1751278947643,1.0939802,652.09,651.6,1.215]
[1751278947945,1.0939802,652.08,651.6,1.215]
[1751278948249,1.0939802,652.07,651.6,1.215]
[1751278948442,1.0939802,652.06,651.6,1.215]
[1751278948746,1.0939802,652.05,651.6,1.215]
[1751278948946,1.0939802,652.04,651.6,1.215]
[1751278949144,1.0939802,652.03,651.6,1.215]
[1751278949347,1.0939802,652.02,651.6,1.215]
[1751278949647,1.0939802,652.01,651.6,1.215]
[1751278949848,1.0939802,652.0,651.6,1.215]
[1751278950149,1.0939802,651.99,651.61,1.159]
[1751278950348,1.0939802,651.98,651.61,1.159]
[1751278950649,1.1386314,652.16,651.61,1.159]
[1751278950949,1.0940531,652.15,651.61,1.159]
[1751278951148,1.0940531,652.14,651.61,1.159]
[1751278951345,1.0940531,652.13,651.61,1.159]
[1751278951644,1.0940531,652.12,651.61,1.159]
[1751278951843,1.0940531,652.11,651.61,1.159]
[1751278952149,1.0940531,652.1,651.61,1.159]
[1751278952346,1.0940531,652.09,651.61,1.159]
[1751278952547,1.1386314,652.16,651.61,1.159]
[1751278952747,1.0943684,652.15,651.61,1.159]
[1751278952945,1.0943684,652.14,651.61,1.159]
[1751278953145,1.1386314,652.2,651.61,1.159]
[1751278953346,1.0942299,652.19,651.61,1.159]
[1751278953547,1.0942299,652.18,651.61,1.159]
[1751278953749,1.0942299,652.17,651.61,1.159]
[1751278954046,1.0942299,652.16,651.61,1.159]
[1751278954246,1.1386314,652.2,651.61,1.159]
[1751278954448,1.0941123,652.19,651.61,1.159]
[1751278954651,1.0941123,652.18,651.61,1.159]
[1751278954950,1.0941123,652.17,651.61,1.159]
[1751278955150,1.0941123,652.16,651.61,1.159]
[1751278955354,1.0941123,652.15,651.61,1.159]
[1751278955548,1.0941123,652.14,651.61,1.159]
[1751278955748,1.1378562,652.18,651.61,1.159]
[1751278955949,1.094015,652.17,651.61,1.159]
[1751278956153,1.094015,652.16,651.61,1.159]
[1751278956351,1.1378562,652.18,651.61,1.159]
[1751278956649,1.0939392,652.17,651.61,1.159]
[1751278956851,1.0939392,652.16,651.61,1.159]
[1751278957051,1.1378562,652.18,651.61,1.159]
[1751278957250,1.0938084,652.17,651.61,1.159]
[1751278957455,1.0938084,652.16,651.61,1.159]
[1751278957755,1.1378562,652.18,651.61,1.159]
[1751278957953,1.0938521,652.17,651.61,1.159]
[1751278958255,1.0938521,652.16,651.61,1.159]
[1751278958449,1.0938521,652.15,651.61,1.159]
[1751278958650,1.1378562,652.18,651.61,1.159]
[1751278958853,1.0937841,652.17,651.62,0.631]
[1751278959052,1.0937841,652.16,651.62,0.631]
[1751278959255,1.0937841,652.15,651.62,0.631]
[1751278959555,1.1378562,652.18,651.62,0.631]
[1751278959755,1.0937345,652.17,651.62,0.631]
[1751278959955,1.0937345,652.16,651.62,0.631]
[1751278960155,2.2315907,652.15,651.62,0.631]
[1751278960351,1.0937345,652.14,651.62,0.631]
[1751278960556,1.0937345,652.13,651.63,1.434]
[1751278960753,1.0937345,652.12,651.63,1.434]
[1751278961055,1.0937345,652.11,651.63,1.434]
[1751278961356,1.0937345,652.1,651.63,1.434]
[1751278961557,1.3410909,652.27,651.63,1.434]
[1751278961856,2.4347801,652.26,651.64,1.857]
[1751278962050,1.0936892,652.25,651.64,1.857]
[1751278962355,1.0936892,652.24,651.64,1.857]
[1751278962553,1.0936892,652.23,651.64,1.857]
[1751278962852,1.0936892,652.22,651.64,1.857]
[1751278963056,1.0936892,652.21,651.64,1.857]
[1751278963351,1.0936892,652.2,651.64,1.857]
[1751278963652,1.0936892,652.19,651.64,1.857]
[1751278963852,1.0936892,652.18,651.64,1.857]
[1751278964051,1.0936892,652.17,651.64,1.857]
[1751278964256,1.0936892,652.16,651.64,1.857]
[1751278964450,1.0936892,652.15,651.64,1.857]
[1751278964650,1.0936892,652.14,651.64,1.857]
[1751278964853,1.0936892,652.13,651.64,1.857]
[1751278965156,1.0936892,652.12,651.64,1.857]
[1751278965355,1.0936892,652.11,651.64,1.857]
[1751278965652,1.3412328,652.29,651.64,1.857]
[1751278965856,2.4350517,652.28,651.64,1.857]
[1751278966056,2.4350517,652.27,651.64,1.857]
[1751278966356,2.4350517,652.26,651.64,1.857]
[1751278966551,1.0938189,652.25,651.64,1.857]
[1751278966756,1.0938189,652.24,651.65,1.402]
[1751278966956,1.0938189,652.23,651.65,1.402]
[1751278967158,1.0938189,652.22,651.65,1.402]
[1751278967455,1.0938189,652.21,651.65,1.402]
[1751278967653,1.0938189,652.2,651.65,1.402]
[1751278967851,1.0938189,652.19,651.65,1.402]
[1751278968052,1.0938189,652.18,651.65,1.402]
[1751278968250,1.0938189,652.17,651.65,1.402]